[Event "Late-Titled-Tuesday-Blitz-February-20-2024"]
[Site "Chess.com"]
[Date "2024.02.20"]
[Round "2"]
[White "best926"]
[Black "Iuckyducky"]
[Result "0-1"]
[WhiteElo "2489"]
[BlackElo "2308"]
[TimeControl "180+1"]
[EndTime "14:17:38 PST"]
[Termination "Iuckyducky won by resignation"]

1. d4 {[%clk 0:03:00.9]} 1... Nf6 {[%clk 0:02:58.4]} 2. c4 {[%clk 0:03:00.7]}
2... e6 {[%clk 0:02:58.6]} 3. Nf3 {[%clk 0:03:00.4]} 3... b6 {[%clk 0:02:57.5]}
4. g3 {[%clk 0:02:59.6]} 4... Bb7 {[%clk 0:02:58.4]} 5. Bg2 {[%clk 0:02:59.9]}
5... Be7 {[%clk 0:02:59]} 6. O-O {[%clk 0:03:00.4]} 6... O-O {[%clk 0:02:59.6]}
7. b3 {[%clk 0:02:56.2]} 7... c5 {[%clk 0:02:52.6]} 8. Bb2 {[%clk 0:02:54.1]}
8... d6 {[%clk 0:02:53.1]} 9. Nc3 {[%clk 0:02:48.5]} 9... Nbd7 {[%clk
0:02:53.4]} 10. Qc2 {[%clk 0:02:42.3]} 10... Qc7 {[%clk 0:02:49.4]} 11. Rad1
{[%clk 0:02:41.6]} 11... a6 {[%clk 0:02:47]} 12. e4 {[%clk 0:02:33.2]} 12... e5
{[%clk 0:02:47.2]} 13. d5 {[%clk 0:02:29]} 13... Ne8 {[%clk 0:02:33]} 14. Ne1
{[%clk 0:02:28.4]} 14... Rb8 {[%clk 0:02:14.9]} 15. Nd3 {[%clk 0:02:25.2]} 15...
Bc8 {[%clk 0:02:14]} 16. f4 {[%clk 0:02:23.8]} 16... b5 {[%clk 0:02:12.3]} 17.
f5 {[%clk 0:02:13.6]} 17... bxc4 {[%clk 0:02:01]} 18. bxc4 {[%clk 0:02:14.5]}
18... Nb6 {[%clk 0:02:00.8]} 19. Ne2 {[%clk 0:02:01.2]} 19... Nf6 {[%clk
0:02:00.7]} 20. h3 {[%clk 0:01:59.1]} 20... h5 {[%clk 0:02:00.8]} 21. Nf2 {[%clk
0:01:58]} 21... Nxc4 {[%clk 0:01:54.6]} 22. Bc1 {[%clk 0:01:53.8]} 22... Nb6
{[%clk 0:01:26.6]} 23. g4 {[%clk 0:01:53.3]} 23... h4 {[%clk 0:01:27.2]} 24. g5
{[%clk 0:01:33]} 24... Nh7 {[%clk 0:01:25.8]} 25. Kh1 {[%clk 0:00:51.3]} 25...
Bd7 {[%clk 0:01:23.6]} 26. Ng1 {[%clk 0:00:51.4]} 26... Ba4 {[%clk 0:01:22.3]}
27. Qe2 {[%clk 0:00:50.8]} 27... Bxd1 {[%clk 0:01:17]} 28. Rxd1 {[%clk
0:00:51.7]} 28... Bxg5 {[%clk 0:01:09.4]} 29. Nf3 {[%clk 0:00:43.2]} 29... Bxc1
{[%clk 0:01:00.1]} 30. Rxc1 {[%clk 0:00:44.1]} 30... Qe7 {[%clk 0:01:00.1]} 31.
Qe3 {[%clk 0:00:35.9]} 31... Na4 {[%clk 0:00:53.9]} 32. Rg1 {[%clk 0:00:35]}
32... Rb2 {[%clk 0:00:50.1]} 33. Ng4 {[%clk 0:00:31.7]} 33... Rfb8 {[%clk
0:00:45]} 34. Bf1 {[%clk 0:00:31.3]} 34... Rxa2 {[%clk 0:00:35.7]} 35. f6 {[%clk
0:00:26.8]} 35... Nxf6 {[%clk 0:00:32.1]} 36. Qg5 {[%clk 0:00:24.4]} 36... Kf8
{[%clk 0:00:15.6]} 37. Qxh4 {[%clk 0:00:11.8]} 37... Rbb2 {[%clk 0:00:09.7]} 38.
Qh8+ {[%clk 0:00:06.2]} 38... Ng8 {[%clk 0:00:10.2]} 39. Nh6 {[%clk 0:00:07.1]}
39... Qf6 {[%clk 0:00:06.5]} 40. Qxg8+ {[%clk 0:00:02.7]} 40... Ke7 {[%clk
0:00:07]} 41. Qxf7+ {[%clk 0:00:02.3]} 41... Qxf7 {[%clk 0:00:07.1]} 42. Nxf7
{[%clk 0:00:03.2]} 42... Kxf7 {[%clk 0:00:08]} 43. h4 {[%clk 0:00:02.4]} 43...
Nc3 {[%clk 0:00:07.6]} 44. Bh3 {[%clk 0:00:01.7]} 44... Nxe4 {[%clk 0:00:06.9]}
45. Be6+ {[%clk 0:00:02]} 45... Kf6 {[%clk 0:00:06.2]} 46. Rf1 {[%clk
0:00:01.7]} 46... Ng3+ {[%clk 0:00:06.2]} 47. Kg1 {[%clk 0:00:02.3]} 47... Nxf1
{[%clk 0:00:06.9]} 0-1

[Event "Late-Titled-Tuesday-Blitz-February-20-2024"]
[Site "Chess.com"]
[Date "2024.02.20"]
[Round "2"]
[White "DrVelja"]
[Black "xakevicius91"]
[Result "1-0"]
[WhiteElo "2978"]
[BlackElo "2592"]
[TimeControl "180+1"]
[EndTime "14:17:41 PST"]
[Termination "DrVelja won by resignation"]

1. e4 {[%clk 0:03:00.9]} 1... c5 {[%clk 0:02:59.5]} 2. Nf3 {[%clk 0:03:00.8]}
2... e6 {[%clk 0:02:58.9]} 3. c3 {[%clk 0:02:58.6]} 3... Nf6 {[%clk 0:02:57.6]}
4. e5 {[%clk 0:02:58.5]} 4... Nd5 {[%clk 0:02:58.2]} 5. d4 {[%clk 0:02:59.3]}
5... cxd4 {[%clk 0:02:58.7]} 6. cxd4 {[%clk 0:03:00.2]} 6... d6 {[%clk
0:02:59.2]} 7. Bc4 {[%clk 0:03:00.8]} 7... Be7 {[%clk 0:02:59.6]} 8. O-O {[%clk
0:03:01.1]} 8... O-O {[%clk 0:02:59.8]} 9. Qe2 {[%clk 0:03:01.8]} 9... b6 {[%clk
0:03:00.2]} 10. Bxd5 {[%clk 0:03:01.8]} 10... exd5 {[%clk 0:03:00.2]} 11. Nc3
{[%clk 0:03:02.1]} 11... dxe5 {[%clk 0:02:46.9]} 12. dxe5 {[%clk 0:03:01.2]}
12... Be6 {[%clk 0:02:46.4]} 13. Nd4 {[%clk 0:02:57.5]} 13... Qd7 {[%clk
0:02:43.4]} 14. f4 {[%clk 0:02:49.6]} 14... Bc5 {[%clk 0:02:43]} 15. Be3 {[%clk
0:02:50]} 15... Nc6 {[%clk 0:02:38.7]} 16. Qd2 {[%clk 0:02:49.2]} 16... Rac8
{[%clk 0:02:25.9]} 17. h3 {[%clk 0:02:41.3]} 17... Rfd8 {[%clk 0:02:17.9]} 18.
Rad1 {[%clk 0:02:39.3]} 18... g6 {[%clk 0:01:57.5]} 19. Kh1 {[%clk 0:02:34.1]}
19... Nxd4 {[%clk 0:01:56.2]} 20. Bxd4 {[%clk 0:02:34.2]} 20... Bxd4 {[%clk
0:01:57.1]} 21. Qxd4 {[%clk 0:02:34.7]} 21... Bxh3 {[%clk 0:01:51.9]} 22. Qf2
{[%clk 0:01:08.2]} 22... Qc6 {[%clk 0:00:55.2]} 23. Ne2 {[%clk 0:00:59.1]} 23...
Bg4 {[%clk 0:00:39.9]} 24. Nd4 {[%clk 0:00:58.4]} 24... Qc4 {[%clk 0:00:36.2]}
25. Rd2 {[%clk 0:00:58.3]} 25... Qc7 {[%clk 0:00:23.2]} 26. Re1 {[%clk
0:00:58.5]} 26... Qe7 {[%clk 0:00:20.4]} 27. Qg3 {[%clk 0:00:57.9]} 27... h5
{[%clk 0:00:17]} 28. f5 {[%clk 0:00:58.5]} 28... gxf5 {[%clk 0:00:17.2]} 29. e6
{[%clk 0:00:56.4]} 29... Qg5 {[%clk 0:00:09.8]} 30. Rf2 {[%clk 0:00:52]} 30...
Qg6 {[%clk 0:00:06.2]} 31. exf7+ {[%clk 0:00:49.7]} 31... Kxf7 {[%clk
0:00:06.3]} 32. Re6 {[%clk 0:00:47.7]} 32... Qg5 {[%clk 0:00:05]} 33. Kh2 {[%clk
0:00:32.5]} 33... h4 {[%clk 0:00:04.8]} 34. Qe5 {[%clk 0:00:32.1]} 34... Re8
{[%clk 0:00:02.5]} 35. Nxf5 {[%clk 0:00:24.2]} 35... Rxe6 {[%clk 0:00:01.7]} 36.
Ne7+ {[%clk 0:00:24.6]} 36... Kxe7 {[%clk 0:00:02]} 37. Qxg5+ {[%clk 0:00:25.2]}
37... Kd6 {[%clk 0:00:02.6]} 38. Qxg4 {[%clk 0:00:25.8]} 38... Rce8 {[%clk
0:00:03.1]} 39. Qxh4 {[%clk 0:00:23.8]} 39... Re4 {[%clk 0:00:03.3]} 40. Rf6+
{[%clk 0:00:18.8]} 40... R8e6 {[%clk 0:00:04.2]} 41. Rxe6+ {[%clk 0:00:19]}
41... Rxe6 {[%clk 0:00:04.9]} 42. Qd8+ {[%clk 0:00:18.3]} 42... Kc6 {[%clk
0:00:05]} 43. g4 {[%clk 0:00:18.1]} 43... Rd6 {[%clk 0:00:05.9]} 44. Qe8+ {[%clk
0:00:17.8]} 44... Kc7 {[%clk 0:00:06]} 45. Qe3 {[%clk 0:00:16.9]} 45... d4
{[%clk 0:00:06.9]} 46. Qd3 {[%clk 0:00:17.5]} 46... Kc6 {[%clk 0:00:07.4]} 47.
Kg3 {[%clk 0:00:18.1]} 47... Kd5 {[%clk 0:00:08]} 48. Kf4 {[%clk 0:00:18.7]}
48... Rf6+ {[%clk 0:00:08.2]} 49. Kg5 {[%clk 0:00:17.1]} 49... Re6 {[%clk
0:00:08.8]} 50. Kf5 {[%clk 0:00:15.3]} 50... Re3 {[%clk 0:00:08.9]} 51. Qb5+
{[%clk 0:00:15.3]} 51... Kd6 {[%clk 0:00:09.2]} 52. g5 {[%clk 0:00:15]} 52... d3
{[%clk 0:00:09.2]} 53. g6 {[%clk 0:00:15.6]} 53... d2 {[%clk 0:00:09.6]} 54.
Qb4+ {[%clk 0:00:16.1]} 1-0

[Event "Late-Titled-Tuesday-Blitz-February-20-2024"]
[Site "Chess.com"]
[Date "2024.02.20"]
[Round "2"]
[White "SHIVACalypso"]
[Black "Agentxya"]
[Result "1-0"]
[WhiteElo "2496"]
[BlackElo "2261"]
[TimeControl "180+1"]
[EndTime "14:17:41 PST"]
[Termination "SHIVACalypso won on time"]

1. c4 {[%clk 0:02:58.3]} 1... c6 {[%clk 0:02:59.4]} 2. g3 {[%clk 0:02:58.1]}
2... d5 {[%clk 0:02:58.6]} 3. Bg2 {[%clk 0:02:59]} 3... g6 {[%clk 0:02:55.9]} 4.
Nf3 {[%clk 0:02:55.2]} 4... Bg7 {[%clk 0:02:55.8]} 5. O-O {[%clk 0:02:54.3]}
5... e5 {[%clk 0:02:55.5]} 6. d3 {[%clk 0:02:42]} 6... Ne7 {[%clk 0:02:53.3]} 7.
Nbd2 {[%clk 0:02:41.2]} 7... O-O {[%clk 0:02:52.9]} 8. Qc2 {[%clk 0:02:40.5]}
8... h6 {[%clk 0:02:49.9]} 9. Rb1 {[%clk 0:02:38.6]} 9... Be6 {[%clk 0:02:49.7]}
10. b4 {[%clk 0:02:37.5]} 10... f5 {[%clk 0:02:43.8]} 11. b5 {[%clk 0:02:34.4]}
11... e4 {[%clk 0:02:32.9]} 12. Ne1 {[%clk 0:02:33.6]} 12... Nd7 {[%clk
0:02:10.3]} 13. Bb2 {[%clk 0:02:15.8]} 13... Nf6 {[%clk 0:01:54.9]} 14. bxc6
{[%clk 0:01:30.4]} 14... bxc6 {[%clk 0:01:51.5]} 15. Ba3 {[%clk 0:01:28.2]}
15... Rf7 {[%clk 0:01:49.5]} 16. Rb7 {[%clk 0:01:24.4]} 16... Bc8 {[%clk
0:00:53.6]} 17. Rxe7 {[%clk 0:01:20.4]} 17... Rxe7 {[%clk 0:00:53.6]} 18. Bxe7
{[%clk 0:01:21.3]} 18... Qxe7 {[%clk 0:00:54.1]} 19. cxd5 {[%clk 0:01:17.7]}
19... cxd5 {[%clk 0:00:50.1]} 20. dxe4 {[%clk 0:01:15.4]} 20... dxe4 {[%clk
0:00:39.3]} 21. Qb3+ {[%clk 0:01:10]} 21... Be6 {[%clk 0:00:37.9]} 22. Qa4
{[%clk 0:01:09.6]} 22... Nd5 {[%clk 0:00:25.8]} 23. f3 {[%clk 0:00:51.8]} 23...
Nc3 {[%clk 0:00:22.8]} 24. Qa6 {[%clk 0:00:51.7]} 24... e3 {[%clk 0:00:17.8]}
25. Nb3 {[%clk 0:00:51.7]} 25... Rd8 {[%clk 0:00:15.2]} 26. f4 {[%clk
0:00:44.9]} 26... Kh7 {[%clk 0:00:08.8]} 27. Nc5 {[%clk 0:00:41.7]} 27... Qxc5
{[%clk 0:00:07]} 28. Qxe6 {[%clk 0:00:41.1]} 28... Nxe2+ {[%clk 0:00:07.1]} 29.
Kh1 {[%clk 0:00:40.2]} 29... Nd4 {[%clk 0:00:07.8]} 30. Qxe3 {[%clk 0:00:38.1]}
30... Rc8 {[%clk 0:00:07.2]} 31. Nd3 {[%clk 0:00:35]} 31... Qc2 {[%clk
0:00:06.5]} 32. Ne5 {[%clk 0:00:33.6]} 32... Qc3 {[%clk 0:00:06.7]} 33. Qf2
{[%clk 0:00:24.1]} 33... Ne6 {[%clk 0:00:05.9]} 34. Rd1 {[%clk 0:00:20.7]} 34...
Rc7 {[%clk 0:00:05.3]} 35. h4 {[%clk 0:00:18.3]} 35... Bxe5 {[%clk 0:00:05.2]}
36. fxe5 {[%clk 0:00:18.3]} 36... Qxe5 {[%clk 0:00:06]} 37. Rf1 {[%clk
0:00:18.1]} 37... Qg7 {[%clk 0:00:05.9]} 38. Re1 {[%clk 0:00:18.6]} 38... Re7
{[%clk 0:00:04.6]} 39. Qe2 {[%clk 0:00:17]} 39... Qf7 {[%clk 0:00:04.1]} 40. Bd5
{[%clk 0:00:17.5]} 40... Qf6 {[%clk 0:00:03.3]} 41. Bxe6 {[%clk 0:00:17.2]}
41... Kg7 {[%clk 0:00:03.9]} 42. Qc4 {[%clk 0:00:16.8]} 42... Qb2 {[%clk
0:00:03.1]} 43. Re2 {[%clk 0:00:16.7]} 43... Qb1+ {[%clk 0:00:01.6]} 44. Kh2
{[%clk 0:00:17.1]} 44... Qf1 {[%clk 0:00:02.3]} 45. Qd4+ {[%clk 0:00:16.9]}
45... Kh7 {[%clk 0:00:02.3]} 46. Qc4 {[%clk 0:00:16]} 46... Kg7 {[%clk
0:00:02.3]} 47. Rc2 {[%clk 0:00:14.5]} 47... Qf3 {[%clk 0:00:01.4]} 48. Qd4+
{[%clk 0:00:14.2]} 48... Kh7 {[%clk 0:00:01.4]} 49. Bd5 {[%clk 0:00:14.8]} 1-0

[Event "Late-Titled-Tuesday-Blitz-February-20-2024"]
[Site "Chess.com"]
[Date "2024.02.20"]
[Round "2"]
[White "FREZZY23"]
[Black "Horokoskii"]
[Result "0-1"]
[WhiteElo "2418"]
[BlackElo "2118"]
[TimeControl "180+1"]
[EndTime "14:17:46 PST"]
[Termination "Horokoskii won by resignation"]

1. c4 {[%clk 0:02:59.2]} 1... Nf6 {[%clk 0:02:57.1]} 2. g3 {[%clk 0:02:58.1]}
2... g6 {[%clk 0:02:56]} 3. Bg2 {[%clk 0:02:58.4]} 3... Bg7 {[%clk 0:02:56.7]}
4. Nc3 {[%clk 0:02:59]} 4... d6 {[%clk 0:02:57.4]} 5. Nf3 {[%clk 0:02:59.7]}
5... O-O {[%clk 0:02:58]} 6. O-O {[%clk 0:03:00.5]} 6... e5 {[%clk 0:02:57.3]}
7. d4 {[%clk 0:03:00.8]} 7... c6 {[%clk 0:02:51.5]} 8. dxe5 {[%clk 0:03:00.3]}
8... dxe5 {[%clk 0:02:48.6]} 9. Qxd8 {[%clk 0:03:01.2]} 9... Rxd8 {[%clk
0:02:48.9]} 10. Nxe5 {[%clk 0:03:01.2]} 10... Re8 {[%clk 0:02:46.9]} 11. Nf3
{[%clk 0:02:59.5]} 11... Be6 {[%clk 0:02:41.8]} 12. Nd2 {[%clk 0:02:57.6]} 12...
Nbd7 {[%clk 0:02:37.6]} 13. Rb1 {[%clk 0:02:54.1]} 13... Rad8 {[%clk 0:02:33.8]}
14. b3 {[%clk 0:02:51.9]} 14... Nc5 {[%clk 0:02:30.2]} 15. b4 {[%clk 0:02:29.8]}
15... Bf5 {[%clk 0:02:17.9]} 16. bxc5 {[%clk 0:02:27]} 16... Bxb1 {[%clk
0:02:18.4]} 17. Ndxb1 {[%clk 0:02:26.2]} 17... Nd7 {[%clk 0:02:18.6]} 18. Be3
{[%clk 0:02:23.7]} 18... Ne5 {[%clk 0:02:10]} 19. Ne4 {[%clk 0:02:03.2]} 19...
Nxc4 {[%clk 0:02:05.7]} 20. Bg5 {[%clk 0:02:03.1]} 20... Rd7 {[%clk 0:01:41.3]}
21. Rc1 {[%clk 0:01:56.3]} 21... Ne5 {[%clk 0:01:35.8]} 22. Nd6 {[%clk
0:01:45.1]} 22... Rb8 {[%clk 0:01:24.8]} 23. Nc3 {[%clk 0:01:32.9]} 23... h6
{[%clk 0:01:22.1]} 24. Bf4 {[%clk 0:01:26.5]} 24... g5 {[%clk 0:01:21.3]} 25.
Be3 {[%clk 0:01:23.3]} 25... Ng4 {[%clk 0:01:18.1]} 26. Bh3 {[%clk 0:01:20.3]}
26... f5 {[%clk 0:01:14.9]} 27. Nd1 {[%clk 0:00:49]} 27... Nxe3 {[%clk
0:01:08.6]} 28. Nxe3 {[%clk 0:00:48.7]} 28... g4 {[%clk 0:01:06.4]} 29. Bg2
{[%clk 0:00:45.9]} 29... f4 {[%clk 0:01:06.6]} 30. Nef5 {[%clk 0:00:44.8]} 30...
fxg3 {[%clk 0:01:04]} 31. hxg3 {[%clk 0:00:44.8]} 31... Be5 {[%clk 0:00:59.4]}
32. Nxh6+ {[%clk 0:00:43]} 32... Kg7 {[%clk 0:00:57.9]} 33. Rd1 {[%clk 0:00:37]}
33... Kxh6 {[%clk 0:00:51.7]} 34. Nf5+ {[%clk 0:00:34]} 34... Kg5 {[%clk
0:00:51.9]} 35. Rxd7 {[%clk 0:00:32.7]} 35... Kxf5 {[%clk 0:00:52]} 36. Rf7+
{[%clk 0:00:28.7]} 36... Ke6 {[%clk 0:00:50.4]} 37. Rh7 {[%clk 0:00:27.8]} 37...
b6 {[%clk 0:00:49]} 38. Bxc6 {[%clk 0:00:27]} 38... bxc5 {[%clk 0:00:49]} 39.
Bd7+ {[%clk 0:00:27.6]} 39... Kd6 {[%clk 0:00:47.4]} 40. Bxg4 {[%clk 0:00:27.6]}
40... Rb2 {[%clk 0:00:45.9]} 41. a4 {[%clk 0:00:27]} 41... a5 {[%clk 0:00:45]}
42. Ra7 {[%clk 0:00:21.6]} 42... Bc3 {[%clk 0:00:43.1]} 43. Kg2 {[%clk
0:00:21.9]} 43... Bb4 {[%clk 0:00:41.4]} 44. Kf3 {[%clk 0:00:21.3]} 44... c4
{[%clk 0:00:41.8]} 45. Bf5 {[%clk 0:00:21.1]} 45... c3 {[%clk 0:00:39.2]} 46.
Ra6+ {[%clk 0:00:21.7]} 46... Ke5 {[%clk 0:00:39.3]} 47. Kg4 {[%clk 0:00:19.6]}
47... Rxe2 {[%clk 0:00:36.8]} 48. f4+ {[%clk 0:00:19.9]} 48... Kd4 {[%clk
0:00:34.7]} 49. Rc6 {[%clk 0:00:19.9]} 49... Ra2 {[%clk 0:00:30.7]} 50. Kg5
{[%clk 0:00:18.7]} 50... Rxa4 {[%clk 0:00:30.3]} 51. g4 {[%clk 0:00:19.3]} 51...
Kd5 {[%clk 0:00:27.2]} 52. Rc8 {[%clk 0:00:19.1]} 52... Bd6 {[%clk 0:00:26.3]}
53. Bg6 {[%clk 0:00:17.8]} 53... Bxf4+ {[%clk 0:00:24.9]} 54. Kh5 {[%clk
0:00:18.3]} 54... Bd2 {[%clk 0:00:24.6]} 55. Bf7+ {[%clk 0:00:17.5]} 55... Ke5
{[%clk 0:00:24.3]} 56. g5 {[%clk 0:00:17.1]} 56... Rf4 {[%clk 0:00:22.7]} 57. g6
{[%clk 0:00:16.5]} 57... Kf6 {[%clk 0:00:22.5]} 58. Rc6+ {[%clk 0:00:15.9]}
58... Kg7 {[%clk 0:00:22.5]} 59. Kg5 {[%clk 0:00:15.1]} 59... Rc4+ {[%clk
0:00:21.9]} 0-1

[Event "Late-Titled-Tuesday-Blitz-February-20-2024"]
[Site "Chess.com"]
[Date "2024.02.20"]
[Round "2"]
[White "zajka-molotok"]
[Black "Sacbutt"]
[Result "1-0"]
[WhiteElo "2512"]
[BlackElo "2302"]
[TimeControl "180+1"]
[EndTime "14:17:49 PST"]
[Termination "zajka-molotok won on time"]

1. Nf3 {[%clk 0:03:00.9]} 1... e6 {[%clk 0:02:56.8]} 2. g3 {[%clk 0:03:00.8]}
2... d5 {[%clk 0:02:56.8]} 3. Bg2 {[%clk 0:03:01.5]} 3... Nf6 {[%clk 0:02:57.3]}
4. O-O {[%clk 0:03:01.9]} 4... Be7 {[%clk 0:02:57.8]} 5. c4 {[%clk 0:03:00.3]}
5... O-O {[%clk 0:02:57.8]} 6. b3 {[%clk 0:03:00.4]} 6... c5 {[%clk 0:02:57]} 7.
Bb2 {[%clk 0:02:57.8]} 7... d4 {[%clk 0:02:56]} 8. e3 {[%clk 0:02:52.1]} 8...
Nc6 {[%clk 0:02:56]} 9. exd4 {[%clk 0:02:51.8]} 9... cxd4 {[%clk 0:02:56.2]} 10.
Re1 {[%clk 0:02:49.8]} 10... Re8 {[%clk 0:02:40.4]} 11. a3 {[%clk 0:02:44.1]}
11... a5 {[%clk 0:02:40.4]} 12. Ne5 {[%clk 0:02:41.5]} 12... Nxe5 {[%clk
0:02:35.8]} 13. Rxe5 {[%clk 0:02:42.4]} 13... Bd6 {[%clk 0:02:29.8]} 14. Rb5
{[%clk 0:02:37.2]} 14... e5 {[%clk 0:02:24.4]} 15. d3 {[%clk 0:02:34]} 15... Qc7
{[%clk 0:02:11.7]} 16. Nd2 {[%clk 0:02:32.1]} 16... Ra7 {[%clk 0:02:03.5]} 17.
b4 {[%clk 0:02:19.2]} 17... a4 {[%clk 0:01:47.3]} 18. c5 {[%clk 0:02:12.2]}
18... Bf8 {[%clk 0:01:47.3]} 19. Nc4 {[%clk 0:02:08.3]} 19... Bd7 {[%clk
0:01:43.3]} 20. Ra5 {[%clk 0:01:54.6]} 20... Rxa5 {[%clk 0:01:39.4]} 21. Nxa5
{[%clk 0:01:55.5]} 21... b6 {[%clk 0:01:27.2]} 22. cxb6 {[%clk 0:01:51.9]} 22...
Qxb6 {[%clk 0:01:28.1]} 23. Rc1 {[%clk 0:01:46.8]} 23... Qb5 {[%clk 0:00:57.7]}
24. Nc4 {[%clk 0:01:30.8]} 24... Bf5 {[%clk 0:00:45]} 25. Qf3 {[%clk 0:01:14.7]}
25... Bg6 {[%clk 0:00:40.9]} 26. Qc6 {[%clk 0:01:13.1]} 26... Qxc6 {[%clk
0:00:38.3]} 27. Bxc6 {[%clk 0:01:14]} 27... Re6 {[%clk 0:00:34.9]} 28. Bxa4
{[%clk 0:01:00.6]} 28... Bxd3 {[%clk 0:00:34.6]} 29. b5 {[%clk 0:00:54.7]} 29...
Bxc4 {[%clk 0:00:32.1]} 30. Rxc4 {[%clk 0:00:54.1]} 30... d3 {[%clk 0:00:29.6]}
31. Rc8 {[%clk 0:00:44.5]} 31... d2 {[%clk 0:00:19.9]} 32. Bc3 {[%clk
0:00:21.3]} 32... Rd6 {[%clk 0:00:17.2]} 33. Bd1 {[%clk 0:00:20.9]} 33... Nd7
{[%clk 0:00:14.4]} 34. Bb4 {[%clk 0:00:19.9]} 34... Rb6 {[%clk 0:00:14.1]} 35.
a4 {[%clk 0:00:18.9]} 35... Rb8 {[%clk 0:00:09.7]} 36. Rxb8 {[%clk 0:00:17.3]}
36... Nxb8 {[%clk 0:00:10.6]} 37. Bxd2 {[%clk 0:00:17.6]} 37... Bc5 {[%clk
0:00:07.8]} 38. a5 {[%clk 0:00:17.6]} 38... Kf8 {[%clk 0:00:07.6]} 39. b6 {[%clk
0:00:17.9]} 39... Ke7 {[%clk 0:00:06.5]} 40. Bf3 {[%clk 0:00:17.6]} 40... Kd7
{[%clk 0:00:05.6]} 41. h4 {[%clk 0:00:16.5]} 41... f5 {[%clk 0:00:04.4]} 42. Kf1
{[%clk 0:00:16.2]} 42... e4 {[%clk 0:00:04.7]} 43. Be2 {[%clk 0:00:09.8]} 43...
Kc6 {[%clk 0:00:05.6]} 44. Bc4 {[%clk 0:00:09.4]} 44... Nd7 {[%clk 0:00:02.3]}
45. Ke2 {[%clk 0:00:08.4]} 45... Ne5 {[%clk 0:00:02.7]} 46. Bg8 {[%clk
0:00:08.1]} 46... h6 {[%clk 0:00:02.3]} 47. Be6 {[%clk 0:00:07.9]} 47... g5
{[%clk 0:00:02.6]} 48. hxg5 {[%clk 0:00:07.7]} 48... hxg5 {[%clk 0:00:02.4]} 49.
Bxf5 {[%clk 0:00:08.4]} 49... Kb5 {[%clk 0:00:03]} 50. Bxe4 {[%clk 0:00:08.5]}
50... Ka6 {[%clk 0:00:01.8]} 51. b7 {[%clk 0:00:08.8]} 51... Nd7 {[%clk
0:00:01.5]} 52. Bxg5 {[%clk 0:00:08.8]} 52... Kxa5 {[%clk 0:00:01.3]} 53. Bf4
{[%clk 0:00:09]} 1-0

[Event "Late-Titled-Tuesday-Blitz-February-20-2024"]
[Site "Chess.com"]
[Date "2024.02.20"]
[Round "2"]
[White "ural58"]
[Black "cristiano78"]
[Result "1-0"]
[WhiteElo "2490"]
[BlackElo "2248"]
[TimeControl "180+1"]
[EndTime "14:17:49 PST"]
[Termination "ural58 won by resignation"]

1. e4 {[%clk 0:02:04.3]} 1... c5 {[%clk 0:02:58.8]} 2. b3 {[%clk 0:02:03.6]}
2... Nc6 {[%clk 0:02:57.8]} 3. Bb2 {[%clk 0:02:01.9]} 3... e5 {[%clk 0:02:57.1]}
4. f4 {[%clk 0:02:00.8]} 4... exf4 {[%clk 0:02:54]} 5. Qf3 {[%clk 0:02:00]} 5...
Nf6 {[%clk 0:02:50.2]} 6. Qxf4 {[%clk 0:01:59.4]} 6... Be7 {[%clk 0:02:46.9]} 7.
e5 {[%clk 0:01:47.6]} 7... Nd5 {[%clk 0:02:45.2]} 8. Qf3 {[%clk 0:01:47.4]} 8...
Nc7 {[%clk 0:02:41.8]} 9. Nc3 {[%clk 0:01:39.4]} 9... O-O {[%clk 0:02:41.1]} 10.
Ne4 {[%clk 0:01:31.6]} 10... d5 {[%clk 0:02:32.7]} 11. exd6 {[%clk 0:01:31.3]}
11... Bxd6 {[%clk 0:02:30.7]} 12. Nxd6 {[%clk 0:01:31.1]} 12... Qxd6 {[%clk
0:02:30.1]} 13. O-O-O {[%clk 0:01:31]} 13... Nd4 {[%clk 0:02:29.1]} 14. Qf2
{[%clk 0:01:17.4]} 14... Bf5 {[%clk 0:02:22.7]} 15. d3 {[%clk 0:01:12.5]} 15...
Bg6 {[%clk 0:02:21]} 16. Nf3 {[%clk 0:01:12.3]} 16... Nce6 {[%clk 0:02:18]} 17.
Nd2 {[%clk 0:01:07.1]} 17... b5 {[%clk 0:02:14.7]} 18. Ne4 {[%clk 0:01:06.7]}
18... Qd5 {[%clk 0:02:05.2]} 19. g4 {[%clk 0:01:05.9]} 19... f5 {[%clk
0:01:57.9]} 20. gxf5 {[%clk 0:01:02.9]} 20... Rxf5 {[%clk 0:01:57.1]} 21. Qd2
{[%clk 0:00:24.5]} 21... Raf8 {[%clk 0:01:55.1]} 22. Bg2 {[%clk 0:00:23]} 22...
Nf3 {[%clk 0:01:48]} 23. Bxf3 {[%clk 0:00:21.4]} 23... Rxf3 {[%clk 0:01:47.7]}
24. Rhe1 {[%clk 0:00:14.8]} 24... Bxe4 {[%clk 0:01:38.5]} 25. dxe4 {[%clk
0:00:12.9]} 25... Qxd2+ {[%clk 0:01:37.7]} 26. Rxd2 {[%clk 0:00:13.8]} 26... Rf1
{[%clk 0:01:35.4]} 27. Rxf1 {[%clk 0:00:11.7]} 27... Rxf1+ {[%clk 0:01:34.5]}
28. Rd1 {[%clk 0:00:12.2]} 28... Rxd1+ {[%clk 0:01:34.3]} 29. Kxd1 {[%clk
0:00:11.9]} 29... Ng5 {[%clk 0:01:33.1]} 30. e5 {[%clk 0:00:10.7]} 30... Nf3
{[%clk 0:01:30.4]} 31. Ke2 {[%clk 0:00:07.9]} 31... Nxh2 {[%clk 0:01:29.3]} 32.
Ke3 {[%clk 0:00:08.5]} 32... Ng4+ {[%clk 0:01:28.5]} 33. Ke4 {[%clk 0:00:09.1]}
33... Kf7 {[%clk 0:01:28.2]} 34. Kd5 {[%clk 0:00:09.3]} 34... Ne3+ {[%clk
0:01:24.1]} 35. Kxc5 {[%clk 0:00:08.8]} 35... Nxc2 {[%clk 0:01:20.1]} 36. e6+
{[%clk 0:00:09]} 36... Kxe6 {[%clk 0:01:19.7]} 37. Bxg7 {[%clk 0:00:09]} 37...
b4 {[%clk 0:01:19]} 38. Kb5 {[%clk 0:00:08]} 38... h5 {[%clk 0:01:17.7]} 39. Bh6
{[%clk 0:00:07]} 39... h4 {[%clk 0:01:17.3]} 40. Bf4 {[%clk 0:00:06.9]} 40...
Kf5 {[%clk 0:01:15.5]} 41. Bb8 {[%clk 0:00:06.9]} 41... h3 {[%clk 0:01:10.9]}
42. Ka6 {[%clk 0:00:07]} 42... Ke4 {[%clk 0:01:10.3]} 43. Kxa7 {[%clk
0:00:06.7]} 43... Nd4 {[%clk 0:01:07.8]} 44. Ka6 {[%clk 0:00:05.9]} 44... Kd3
{[%clk 0:01:07.8]} 45. Ka5 {[%clk 0:00:04.8]} 45... Nxb3+ {[%clk 0:01:07.6]} 46.
axb3 {[%clk 0:00:04.2]} 46... Kc3 {[%clk 0:01:07.9]} 47. Ka4 {[%clk 0:00:04.8]}
47... Kd3 {[%clk 0:00:47]} 48. Bh2 {[%clk 0:00:05.3]} 48... Ke4 {[%clk
0:00:47.3]} 49. Bb8 {[%clk 0:00:06]} 49... Kd5 {[%clk 0:00:48]} 50. Kxb4 {[%clk
0:00:06.4]} 50... Kc6 {[%clk 0:00:48.5]} 51. Bh2 {[%clk 0:00:07]} 51... Kb7
{[%clk 0:00:48.9]} 52. Kc4 {[%clk 0:00:07.7]} 52... Kb6 {[%clk 0:00:49.1]} 53.
b4 {[%clk 0:00:08.5]} 53... Ka6 {[%clk 0:00:49.6]} 54. b5+ {[%clk 0:00:09.4]}
54... Kb7 {[%clk 0:00:50.1]} 55. Kc5 {[%clk 0:00:09.7]} 55... Kc8 {[%clk
0:00:50.1]} 56. b6 {[%clk 0:00:10]} 56... Kb7 {[%clk 0:00:50.6]} 57. Kb5 {[%clk
0:00:10.6]} 57... Ka8 {[%clk 0:00:51]} 58. Kc5 {[%clk 0:00:09.8]} 58... Kb7
{[%clk 0:00:51.2]} 59. Bg1 {[%clk 0:00:08.4]} 59... Ka6 {[%clk 0:00:48.8]} 60.
Kc6 {[%clk 0:00:08.3]} 60... Ka5 {[%clk 0:00:47.7]} 61. b7 {[%clk 0:00:07.9]}
61... Ka4 {[%clk 0:00:47.8]} 62. b8=Q {[%clk 0:00:08.1]} 62... h2 {[%clk
0:00:48.7]} 63. Qxh2 {[%clk 0:00:08.2]} 63... Ka5 {[%clk 0:00:48.3]} 64. Qb8
{[%clk 0:00:08.4]} 64... Ka4 {[%clk 0:00:48.4]} 65. Kc5 {[%clk 0:00:08.3]} 1-0